[Event "Live Chess"]
[Site "Chess.com"]
[Date "2024.06.01"]
[Round "-"]
[White "gunslinger222"]
[Black "Brooms1989"]
[Result "1-0"]
[WhiteElo "2257"]
[BlackElo "1094"]
[TimeControl "300"]
[EndTime "11:58:31 PDT"]
[Termination "gunslinger222 won by resignation"]

1. d4 {[%clk 0:04:58]} 1... Nf6 {[%clk 0:04:57.4]} 2. Nf3 {[%clk 0:04:56.3]}
2... g6 {[%clk 0:04:55.2]} 3. b3 {[%clk 0:04:55.3]} 3... Bg7 {[%clk 0:04:54.1]}
4. Bb2 {[%clk 0:04:55]} 4... O-O {[%clk 0:04:53]} 5. d5 {[%clk 0:04:54.4]} 5...
d6 {[%clk 0:04:44.9]} 6. h4 {[%clk 0:04:53]} 6... e5 {[%clk 0:04:40.9]} 7. e3
{[%clk 0:04:44.1]} 7... Bg4 {[%clk 0:04:30.5]} 8. Be2 {[%clk 0:04:42.5]} 8...
Nbd7 {[%clk 0:04:23.7]} 9. c4 {[%clk 0:04:40.4]} 9... a5 {[%clk 0:04:17.4]} 10.
Nbd2 {[%clk 0:04:39.5]} 10... Nc5 {[%clk 0:04:15.8]} 11. Qc2 {[%clk 0:04:36.1]}
11... e4 {[%clk 0:04:03.6]} 12. Nd4 {[%clk 0:04:30.8]} 12... Bxe2 {[%clk
0:04:00.2]} 13. Kxe2 {[%clk 0:04:29.1]} 13... Nd3 {[%clk 0:03:53]} 14. Nxe4
{[%clk 0:04:20.4]} 14... Nxb2 {[%clk 0:03:43.4]} 15. Nxf6+ {[%clk 0:04:18.8]}
15... Qxf6 {[%clk 0:03:37.1]} 16. Qxb2 {[%clk 0:04:18.7]} 16... Rfe8 {[%clk
0:03:28.6]} 17. Rad1 {[%clk 0:04:13.6]} 17... Re7 {[%clk 0:03:12.4]} 18. Qd2
{[%clk 0:04:09.1]} 18... Bh6 {[%clk 0:02:23.8]} 19. h5 {[%clk 0:04:02.3]} 19...
Qg5 {[%clk 0:02:11.1]} 20. Nf3 {[%clk 0:03:52.5]} 20... Qf6 {[%clk 0:01:46.2]}
21. hxg6 {[%clk 0:03:49.5]} 21... fxg6 {[%clk 0:01:43.5]} 22. Rxh6 {[%clk
0:03:46.2]} 22... Rae8 {[%clk 0:01:34.1]} 23. Kf1 {[%clk 0:03:36.7]} 23... Qg5
{[%clk 0:01:21.9]} 24. Nxg5 {[%clk 0:03:35.2]} 1-0

[Event "Live Chess"]
[Site "Chess.com"]
[Date "2024.06.01"]
[Round "-"]
[White "Grace6363"]
[Black "nigelst"]
[Result "0-1"]
[WhiteElo "1150"]
[BlackElo "1649"]
[TimeControl "300"]
[EndTime "11:58:44 PDT"]
[Termination "nigelst won by resignation"]

1. d4 {[%clk 0:04:55.5]} 1... Nf6 {[%clk 0:04:57.6]} 2. c4 {[%clk 0:04:54.5]}
2... e6 {[%clk 0:04:57.1]} 3. Nf3 {[%clk 0:04:51.6]} 3... Bb4+ {[%clk
0:04:55.5]} 4. Bd2 {[%clk 0:04:50.2]} 4... Qe7 {[%clk 0:04:54.3]} 5. a3 {[%clk
0:04:48.3]} 5... Bxd2+ {[%clk 0:04:51.5]} 6. Nbxd2 {[%clk 0:04:47.5]} 6... d6
{[%clk 0:04:49.7]} 7. Qb3 {[%clk 0:04:46.4]} 7... Nbd7 {[%clk 0:04:47.7]} 8. e4
{[%clk 0:04:43.9]} 8... e5 {[%clk 0:04:46.9]} 9. dxe5 {[%clk 0:04:41.3]} 9...
Nxe5 {[%clk 0:04:45.6]} 10. Nxe5 {[%clk 0:04:40.3]} 10... Qxe5 {[%clk 0:04:41]}
11. f3 {[%clk 0:04:31.9]} 11... O-O {[%clk 0:04:32.7]} 12. Rd1 {[%clk
0:04:30.7]} 12... c6 {[%clk 0:04:31.6]} 13. Bd3 {[%clk 0:04:28]} 13... d5 {[%clk
0:04:29.4]} 14. cxd5 {[%clk 0:04:26]} 14... cxd5 {[%clk 0:04:28.5]} 15. O-O
{[%clk 0:04:22.1]} 15... Qd4+ {[%clk 0:04:23.6]} 16. Kh1 {[%clk 0:04:19.4]}
16... dxe4 {[%clk 0:04:22.2]} 17. Nxe4 {[%clk 0:04:15.6]} 17... Be6 {[%clk
0:04:17.2]} 18. Nxf6+ {[%clk 0:04:14]} 18... Qxf6 {[%clk 0:04:15.7]} 19. Qxb7
{[%clk 0:04:09.7]} 19... Rab8 {[%clk 0:04:14.2]} 20. Qe4 {[%clk 0:04:06.9]}
20... g6 {[%clk 0:04:10.1]} 21. Rd2 {[%clk 0:04:02.9]} 21... Rxb2 {[%clk
0:04:06.5]} 22. Rxb2 {[%clk 0:04:01.6]} 22... Qxb2 {[%clk 0:04:05]} 23. Re1
{[%clk 0:03:55.8]} 23... Rc8 {[%clk 0:03:59.1]} 24. Qa4 {[%clk 0:03:47.1]} 24...
Rc1 {[%clk 0:03:52.7]} 25. Qe4 {[%clk 0:03:38.1]} 25... Qa1 {[%clk 0:03:47.1]}
26. h3 {[%clk 0:02:42.5]} 26... Rxe1+ {[%clk 0:03:42.3]} 0-1

[Event "Live Chess"]
[Site "Chess.com"]
[Date "2024.06.01"]
[Round "-"]
[White "MellowAesthetic"]
[Black "IanCalvert2"]
[Result "1-0"]
[WhiteElo "2078"]
[BlackElo "1509"]
[TimeControl "300"]
[EndTime "11:58:48 PDT"]
[Termination "MellowAesthetic won on time"]

1. e4 {[%clk 0:04:58.9]} 1... d5 {[%clk 0:04:55.8]} 2. exd5 {[%clk 0:04:57.8]}
2... Qxd5 {[%clk 0:04:53.5]} 3. Nc3 {[%clk 0:04:57]} 3... Qd6 {[%clk 0:04:51.4]}
4. d4 {[%clk 0:04:55.9]} 4... Nf6 {[%clk 0:04:50.3]} 5. Nf3 {[%clk 0:04:55]}
5... c6 {[%clk 0:04:48.7]} 6. Ne5 {[%clk 0:04:53.5]} 6... Nbd7 {[%clk
0:04:45.5]} 7. Nc4 {[%clk 0:04:45.4]} 7... Qc7 {[%clk 0:04:41.7]} 8. g3 {[%clk
0:04:43.2]} 8... Nb6 {[%clk 0:04:35.8]} 9. Ne5 {[%clk 0:04:38.1]} 9... Nbd5
{[%clk 0:04:27.9]} 10. Bg2 {[%clk 0:04:32]} 10... e6 {[%clk 0:04:18.9]} 11. O-O
{[%clk 0:04:29.2]} 11... Nxc3 {[%clk 0:04:11.9]} 12. bxc3 {[%clk 0:04:28.2]}
12... Bd6 {[%clk 0:04:10.5]} 13. Nc4 {[%clk 0:04:23.6]} 13... O-O {[%clk
0:04:05.1]} 14. Nxd6 {[%clk 0:04:21]} 14... Qxd6 {[%clk 0:04:02.3]} 15. a4
{[%clk 0:04:20.1]} 15... Rd8 {[%clk 0:04:00.2]} 16. Bg5 {[%clk 0:04:10]} 16...
h6 {[%clk 0:03:33.9]} 17. Bxf6 {[%clk 0:04:05.4]} 17... gxf6 {[%clk 0:03:32.3]}
18. Qh5 {[%clk 0:04:03.5]} 18... Kg7 {[%clk 0:03:21.5]} 19. Rfe1 {[%clk
0:04:02.6]} 19... f5 {[%clk 0:03:11.3]} 20. g4 {[%clk 0:03:51.9]} 20... Qf4
{[%clk 0:02:44.9]} 21. gxf5 {[%clk 0:03:47.3]} 21... Qxf5 {[%clk 0:02:41.2]} 22.
Qxf5 {[%clk 0:03:43.2]} 22... exf5 {[%clk 0:02:39.9]} 23. Re7 {[%clk 0:03:39.4]}
23... Rd7 {[%clk 0:02:23.5]} 24. Rae1 {[%clk 0:03:37.6]} 24... Rxe7 {[%clk
0:02:21.7]} 25. Rxe7 {[%clk 0:03:37.5]} 25... a5 {[%clk 0:02:07.4]} 26. Re8
{[%clk 0:03:32.2]} 26... f6 {[%clk 0:02:00.2]} 27. Bf3 {[%clk 0:03:24.6]} 27...
Kf7 {[%clk 0:01:46.5]} 28. Bh5+ {[%clk 0:03:23.6]} 28... Kg7 {[%clk 0:01:45.4]}
29. Bf3 {[%clk 0:02:58.8]} 29... Kf7 {[%clk 0:01:41]} 30. Rh8 {[%clk 0:02:57.8]}
30... Kg7 {[%clk 0:01:38.3]} 31. Rd8 {[%clk 0:02:56.8]} 31... Kf7 {[%clk
0:01:16.5]} 32. c4 {[%clk 0:02:55.1]} 32... Ke7 {[%clk 0:01:15.2]} 33. Rh8
{[%clk 0:02:54.1]} 33... Rb8 {[%clk 0:00:55.6]} 34. c5 {[%clk 0:02:48.3]} 34...
Kd7 {[%clk 0:00:45.6]} 35. Rxh6 {[%clk 0:02:14.9]} 35... b5 {[%clk 0:00:38.2]}
36. cxb6 {[%clk 0:02:12]} 36... Rxb6 {[%clk 0:00:28.3]} 37. Rxf6 {[%clk
0:02:11.1]} 37... Bb7 {[%clk 0:00:18.7]} 38. Rxf5 {[%clk 0:02:07.4]} 38... Rb4
{[%clk 0:00:16.5]} 39. Rxa5 {[%clk 0:02:05.5]} 39... Rxd4 {[%clk 0:00:14.9]} 40.
Rc5 {[%clk 0:01:57.1]} 40... Rxa4 {[%clk 0:00:09.6]} 41. Kg2 {[%clk 0:01:51.2]}
41... Rf4 {[%clk 0:00:05]} 42. Kg3 {[%clk 0:01:48.6]} 42... Rf8 {[%clk 0:00:01]}
43. h4 {[%clk 0:01:46]} 1-0

[Event "Live Chess"]
[Site "Chess.com"]
[Date "2024.06.01"]
[Round "-"]
[White "gmnorfolk"]
[Black "stevochess11"]
[Result "1-0"]
[WhiteElo "2082"]
[BlackElo "1674"]
[TimeControl "300"]
[EndTime "11:58:54 PDT"]
[Termination "gmnorfolk won by checkmate"]

1. d4 {[%clk 0:04:57.9]} 1... Nf6 {[%clk 0:04:57.9]} 2. Nc3 {[%clk 0:03:56.8]}
2... d5 {[%clk 0:04:54.4]} 3. Bf4 {[%clk 0:03:41.4]} 3... c5 {[%clk 0:04:44.5]}
4. e4 {[%clk 0:03:35.2]} 4... Nxe4 {[%clk 0:04:30.2]} 5. Nxe4 {[%clk 0:03:30.2]}
5... dxe4 {[%clk 0:04:28.5]} 6. dxc5 {[%clk 0:03:25.2]} 6... Qxd1+ {[%clk
0:04:18.3]} 7. Rxd1 {[%clk 0:03:25.1]} 7... Nc6 {[%clk 0:04:15.8]} 8. Bb5 {[%clk
0:03:20.1]} 8... Bd7 {[%clk 0:04:00.4]} 9. c3 {[%clk 0:03:16.1]} 9... g6 {[%clk
0:03:49.1]} 10. Ne2 {[%clk 0:03:11.4]} 10... Bg7 {[%clk 0:03:47.3]} 11. O-O
{[%clk 0:01:56.5]} 11... O-O {[%clk 0:03:32.6]} 12. Rxd7 {[%clk 0:01:48.5]}
12... Rfd8 {[%clk 0:03:21.6]} 13. Rfd1 {[%clk 0:01:46.4]} 13... Rxd7 {[%clk
0:03:18.1]} 14. Rxd7 {[%clk 0:01:44.8]} 14... e5 {[%clk 0:03:16.3]} 15. Bxc6
{[%clk 0:01:38.8]} 15... bxc6 {[%clk 0:03:13]} 16. Be3 {[%clk 0:01:37.6]} 16...
Rb8 {[%clk 0:03:11.2]} 17. b4 {[%clk 0:01:36.1]} 17... f5 {[%clk 0:03:09]} 18.
g3 {[%clk 0:01:34.4]} 18... a5 {[%clk 0:03:05.7]} 19. a3 {[%clk 0:01:32.5]}
19... axb4 {[%clk 0:03:04.4]} 20. axb4 {[%clk 0:01:31.2]} 20... Ra8 {[%clk
0:03:03.4]} 21. Rc7 {[%clk 0:01:22.2]} 21... Ra1+ {[%clk 0:02:58]} 22. Nc1
{[%clk 0:01:21.1]} 22... Ra6 {[%clk 0:02:57.8]} 23. c4 {[%clk 0:01:19]} 23... f4
{[%clk 0:02:55.8]} 24. b5 {[%clk 0:01:14.9]} 24... cxb5 {[%clk 0:02:51.6]} 25.
cxb5 {[%clk 0:01:12.3]} 25... Ra1 {[%clk 0:02:50.4]} 26. b6 {[%clk 0:01:11]}
26... fxe3 {[%clk 0:02:49.3]} 27. fxe3 {[%clk 0:01:08.5]} 27... Rxc1+ {[%clk
0:02:47.5]} 28. Kf2 {[%clk 0:01:06.9]} 28... Rc2+ {[%clk 0:02:46.1]} 29. Ke1
{[%clk 0:01:05.8]} 29... Bh6 {[%clk 0:02:41.8]} 30. b7 {[%clk 0:01:02.6]} 30...
Rb2 {[%clk 0:02:40.6]} 31. Rc8+ {[%clk 0:01:01.3]} 31... Kf7 {[%clk 0:02:39.4]}
32. b8=Q {[%clk 0:01:00.7]} 32... Rxb8 {[%clk 0:02:36.5]} 33. Rxb8 {[%clk
0:00:59.8]} 33... Bxe3 {[%clk 0:02:36.2]} 34. Ke2 {[%clk 0:00:58.6]} 34... Bxc5
{[%clk 0:02:34.6]} 35. Rb7+ {[%clk 0:00:58]} 35... Ke6 {[%clk 0:02:32.9]} 36.
Rxh7 {[%clk 0:00:56.5]} 36... Kf5 {[%clk 0:02:31.9]} 37. Rf7+ {[%clk 0:00:54.8]}
37... Kg4 {[%clk 0:02:30.1]} 38. Rc7 {[%clk 0:00:54.3]} 38... Bd4 {[%clk
0:02:28.5]} 39. Rc2 {[%clk 0:00:52.9]} 39... Kh3 {[%clk 0:02:26.7]} 40. Kf1
{[%clk 0:00:51.8]} 40... g5 {[%clk 0:02:25.2]} 41. Re2 {[%clk 0:00:51.2]} 41...
e3 {[%clk 0:02:22.8]} 42. Kg1 {[%clk 0:00:49.7]} 42... Kg4 {[%clk 0:02:20.4]}
43. Kg2 {[%clk 0:00:48.5]} 43... e4 {[%clk 0:02:10.3]} 44. h3+ {[%clk
0:00:47.7]} 44... Kf5 {[%clk 0:02:09.6]} 45. Ra2 {[%clk 0:00:45.9]} 45... Be5
{[%clk 0:02:00.9]} 46. Ra5 {[%clk 0:00:43.9]} 46... Ke6 {[%clk 0:01:59.2]} 47.
g4 {[%clk 0:00:40.3]} 47... Bf4 {[%clk 0:01:54.6]} 48. Kf1 {[%clk 0:00:38.2]}
48... Bd6 {[%clk 0:01:46.2]} 49. Ke2 {[%clk 0:00:36.9]} 49... Bf4 {[%clk
0:01:44.4]} 50. Ra4 {[%clk 0:00:33.6]} 50... Kd5 {[%clk 0:01:42.7]} 51. Ra3
{[%clk 0:00:31.2]} 51... Kd4 {[%clk 0:01:39.9]} 52. Ra5 {[%clk 0:00:29.3]} 52...
Kc4 {[%clk 0:01:33.9]} 53. Rf5 {[%clk 0:00:28.2]} 53... Kd4 {[%clk 0:01:32.3]}
54. h4 {[%clk 0:00:27.6]} 54... gxh4 {[%clk 0:01:24.5]} 55. Rxf4 {[%clk
0:00:26.3]} 55... Ke5 {[%clk 0:01:24.4]} 56. Rf1 {[%clk 0:00:24.6]} 56... Kd4
{[%clk 0:01:22.6]} 57. g5 {[%clk 0:00:24]} 57... h3 {[%clk 0:01:21.6]} 58. g6
{[%clk 0:00:23.3]} 58... h2 {[%clk 0:01:21.5]} 59. g7 {[%clk 0:00:22.4]} 59...
h1=N {[%clk 0:01:17.4]} 60. Rxh1 {[%clk 0:00:21.5]} 60... Kc3 {[%clk 0:01:16.3]}
61. g8=Q {[%clk 0:00:20.7]} 61... Kc2 {[%clk 0:01:16.2]} 62. Qc8+ {[%clk
0:00:19.4]} 62... Kb3 {[%clk 0:01:15.3]} 63. Rh7 {[%clk 0:00:19]} 63... Ka2
{[%clk 0:01:15.1]} 64. Rb7 {[%clk 0:00:18.5]} 64... Ka3 {[%clk 0:01:13.2]} 65.
Qa8# {[%clk 0:00:18.4]} 1-0

[Event "Live Chess"]
[Site "Chess.com"]
[Date "2024.06.01"]
[Round "-"]
[White "gobbles19"]
[Black "Tushinskiy"]
[Result "0-1"]
[WhiteElo "2181"]
[BlackElo "2225"]
[TimeControl "300"]
[EndTime "11:59:00 PDT"]
[Termination "Tushinskiy won by resignation"]

1. e4 {[%clk 0:04:56.4]} 1... e5 {[%clk 0:04:59]} 2. Nf3 {[%clk 0:04:54.2]} 2...
d6 {[%clk 0:04:58.9]} 3. d4 {[%clk 0:04:48.9]} 3... Bg4 {[%clk 0:04:55.8]} 4.
Be2 {[%clk 0:04:43.8]} 4... Nd7 {[%clk 0:04:54.5]} 5. c3 {[%clk 0:04:40.7]} 5...
Ngf6 {[%clk 0:04:53.3]} 6. Nbd2 {[%clk 0:04:36.9]} 6... Be7 {[%clk 0:04:52.1]}
7. O-O {[%clk 0:04:33.3]} 7... O-O {[%clk 0:04:50.4]} 8. Re1 {[%clk 0:04:30.5]}
8... Re8 {[%clk 0:04:47.8]} 9. h3 {[%clk 0:04:06.4]} 9... Bh5 {[%clk 0:04:42.6]}
10. Qc2 {[%clk 0:04:00.7]} 10... Bg6 {[%clk 0:04:40.7]} 11. Bd3 {[%clk
0:03:54.9]} 11... c6 {[%clk 0:04:37.7]} 12. Nf1 {[%clk 0:03:45.9]} 12... Qc7
{[%clk 0:04:35]} 13. Ng3 {[%clk 0:03:35.6]} 13... Bf8 {[%clk 0:04:31.9]} 14. Nh4
{[%clk 0:03:33.2]} 14... Rad8 {[%clk 0:04:27.6]} 15. Ngf5 {[%clk 0:03:11.2]}
15... a6 {[%clk 0:04:06]} 16. a4 {[%clk 0:03:08.5]} 16... d5 {[%clk 0:03:57]}
17. exd5 {[%clk 0:02:41.9]} 17... Nxd5 {[%clk 0:03:49.4]} 18. Nxg6 {[%clk
0:02:25.1]} 18... hxg6 {[%clk 0:03:47.2]} 19. Ng3 {[%clk 0:02:13.5]} 19... exd4
{[%clk 0:03:45.9]} 20. Rxe8 {[%clk 0:01:57.5]} 20... Rxe8 {[%clk 0:03:45.8]} 21.
Bd2 {[%clk 0:01:44.4]} 21... dxc3 {[%clk 0:03:42.9]} 22. bxc3 {[%clk 0:01:43.4]}
22... Nc5 {[%clk 0:03:38.8]} 23. Bc4 {[%clk 0:01:37.2]} 23... Bd6 {[%clk
0:03:28.7]} 24. Nf1 {[%clk 0:01:32.5]} 24... Bf4 {[%clk 0:03:11]} 25. Bxd5
{[%clk 0:00:49.8]} 25... cxd5 {[%clk 0:02:20.9]} 26. Ne3 {[%clk 0:00:48.8]}
26... Bxe3 {[%clk 0:02:14.4]} 27. Bxe3 {[%clk 0:00:47.5]} 27... Ne4 {[%clk
0:02:13.5]} 28. Bd4 {[%clk 0:00:43.7]} 28... Qc4 {[%clk 0:02:07.8]} 29. Rb1
{[%clk 0:00:40.4]} 29... Rc8 {[%clk 0:02:01.4]} 30. Rxb7 {[%clk 0:00:27.1]}
30... Qxd4 {[%clk 0:01:59.3]} 31. Rb8 {[%clk 0:00:18.4]} 31... Qc4 {[%clk
0:01:53.8]} 0-1

[Event "Live Chess"]
[Site "Chess.com"]
[Date "2024.06.01"]
[Round "-"]
[White "Duke_of_Bebington"]
[Black "SavagePawn7"]
[Result "1-0"]
[WhiteElo "1599"]
[BlackElo "683"]
[TimeControl "300"]
[EndTime "11:59:05 PDT"]
[Termination "Duke_of_Bebington won by resignation"]

1. d4 {[%clk 0:04:57.8]} 1... e5 {[%clk 0:04:57.6]} 2. dxe5 {[%clk 0:04:49.8]}
2... d6 {[%clk 0:04:56.1]} 3. Nf3 {[%clk 0:04:41.6]} 3... dxe5 {[%clk
0:04:54.4]} 4. Qxd8+ {[%clk 0:04:39.7]} 4... Kxd8 {[%clk 0:04:52.1]} 5. Nxe5
{[%clk 0:04:39.3]} 5... Be6 {[%clk 0:04:48.6]} 6. Nc3 {[%clk 0:04:34.4]} 6...
Nc6 {[%clk 0:04:47.1]} 7. Bf4 {[%clk 0:04:33.4]} 7... Nf6 {[%clk 0:04:44.2]} 8.
O-O-O+ {[%clk 0:04:26.6]} 8... Bd6 {[%clk 0:04:41.8]} 9. Nxc6+ {[%clk
0:04:24.1]} 9... bxc6 {[%clk 0:04:40.2]} 10. Bxd6 {[%clk 0:04:23.2]} 10... cxd6
{[%clk 0:04:37.8]} 11. Rxd6+ {[%clk 0:04:22.7]} 11... Kc7 {[%clk 0:04:33.9]} 12.
Rd4 {[%clk 0:04:05.4]} 12... Rad8 {[%clk 0:04:30.7]} 13. e3 {[%clk 0:04:03]}
13... Rxd4 {[%clk 0:04:28.7]} 14. exd4 {[%clk 0:04:02.9]} 14... Nd5 {[%clk
0:04:21.6]} 15. Nxd5+ {[%clk 0:03:59.6]} 15... Bxd5 {[%clk 0:04:20.2]} 16. f3
{[%clk 0:03:59.2]} 16... Bxa2 {[%clk 0:04:17.4]} 17. b3 {[%clk 0:03:58.4]} 17...
Rb8 {[%clk 0:04:09.9]} 18. Kb2 {[%clk 0:03:57.4]} 18... Bxb3 {[%clk 0:04:08.3]}
19. cxb3 {[%clk 0:03:56.7]} 19... a5 {[%clk 0:04:04.8]} 20. Ka3 {[%clk
0:03:51.9]} 20... Kb6 {[%clk 0:04:00.6]} 21. Bc4 {[%clk 0:03:49.9]} 21... c5
{[%clk 0:03:57.6]} 22. dxc5+ {[%clk 0:03:48.4]} 22... Kxc5 {[%clk 0:03:56.4]}
23. Bxf7 {[%clk 0:03:48.1]} 23... Kd4 {[%clk 0:03:49.7]} 24. Rd1+ {[%clk
0:03:44.7]} 24... Kc3 {[%clk 0:03:47]} 25. Rc1+ {[%clk 0:03:42.1]} 25... Kd2
{[%clk 0:03:42.3]} 26. Rc7 {[%clk 0:03:35.5]} 26... a4 {[%clk 0:03:29.8]} 27.
Kxa4 {[%clk 0:03:32.6]} 27... Ra8+ {[%clk 0:03:26.1]} 28. Kb4 {[%clk 0:03:31.8]}
28... Ra1 {[%clk 0:03:18.5]} 29. h3 {[%clk 0:03:18.2]} 29... Rg1 {[%clk
0:03:12.1]} 30. g4 {[%clk 0:03:17.1]} 30... Rg3 {[%clk 0:03:09.8]} 31. Bd5
{[%clk 0:03:15.3]} 31... Rxh3 {[%clk 0:03:07.5]} 32. Rxg7 {[%clk 0:03:14.9]}
32... Ke2 {[%clk 0:02:54.7]} 33. Be4 {[%clk 0:03:12]} 33... Rh6 {[%clk
0:02:41.1]} 34. Rxh7 {[%clk 0:03:09.1]} 34... Rxh7 {[%clk 0:02:39]} 35. Bxh7
{[%clk 0:03:06.9]} 35... Kxf3 {[%clk 0:02:37.4]} 36. g5 {[%clk 0:03:06.3]} 1-0

[Event "Live Chess"]
[Site "Chess.com"]
[Date "2024.06.01"]
[Round "-"]
[White "NottheBishopSacrifice"]
[Black "Thebigsqueeze"]
[Result "1-0"]
[WhiteElo "2295"]
[BlackElo "2304"]
[TimeControl "300"]
[EndTime "11:59:43 PDT"]
[Termination "NottheBishopSacrifice won by resignation"]

1. d4 {[%clk 0:04:57.7]} 1... Nf6 {[%clk 0:04:56.1]} 2. c4 {[%clk 0:04:55.8]}
2... e6 {[%clk 0:04:54.5]} 3. Nf3 {[%clk 0:04:54.2]} 3... Bb4+ {[%clk
0:04:47.4]} 4. Nbd2 {[%clk 0:04:52.6]} 4... O-O {[%clk 0:04:45.3]} 5. a3 {[%clk
0:04:47.2]} 5... Bxd2+ {[%clk 0:04:43.3]} 6. Qxd2 {[%clk 0:04:47.1]} 6... d6
{[%clk 0:04:41.2]} 7. e3 {[%clk 0:04:46]} 7... Qe7 {[%clk 0:04:39.5]} 8. Be2
{[%clk 0:04:44.4]} 8... e5 {[%clk 0:04:38.4]} 9. O-O {[%clk 0:04:42.2]} 9... e4
{[%clk 0:04:34.1]} 10. Ne1 {[%clk 0:04:40.2]} 10... c6 {[%clk 0:04:32.8]} 11. b3
{[%clk 0:04:39.4]} 11... d5 {[%clk 0:04:31.2]} 12. Bb2 {[%clk 0:04:39]} 12...
Bf5 {[%clk 0:04:26.6]} 13. a4 {[%clk 0:04:38.1]} 13... Nbd7 {[%clk 0:04:25.6]}
14. Ba3 {[%clk 0:04:37]} 14... Qe6 {[%clk 0:04:21.7]} 15. Bxf8 {[%clk
0:04:36.6]} 15... Rxf8 {[%clk 0:04:21]} 16. cxd5 {[%clk 0:04:36.2]} 16... cxd5
{[%clk 0:04:18.2]} 17. Nc2 {[%clk 0:04:34.6]} 17... Bg4 {[%clk 0:04:16.9]} 18.
Nb4 {[%clk 0:04:27.9]} 18... Bxe2 {[%clk 0:04:14.7]} 19. Qxe2 {[%clk 0:04:27.8]}
19... a5 {[%clk 0:04:05.8]} 20. Na2 {[%clk 0:04:25.9]} 20... Ng4 {[%clk
0:04:03.2]} 21. h3 {[%clk 0:04:23.9]} 21... Nh6 {[%clk 0:04:00.4]} 22. Nc3
{[%clk 0:04:22.9]} 22... f5 {[%clk 0:03:57.6]} 23. Nb5 {[%clk 0:04:20.9]} 23...
f4 {[%clk 0:03:55.2]} 24. exf4 {[%clk 0:04:19.5]} 24... Rxf4 {[%clk 0:03:47.1]}
25. Rac1 {[%clk 0:04:18.3]} 25... Rf8 {[%clk 0:03:44.4]} 26. Nc7 {[%clk
0:04:15.8]} 26... Qd6 {[%clk 0:03:35.5]} 27. Qb5 {[%clk 0:04:08.6]} 27... Nf6
{[%clk 0:03:28.7]} 28. Qc5 {[%clk 0:04:07.3]} 28... Qd7 {[%clk 0:03:24.9]} 29.
Nb5 {[%clk 0:04:04.5]} 29... Nf5 {[%clk 0:03:20.4]} 30. Qc7 {[%clk 0:04:01.6]}
30... Qe8 {[%clk 0:03:13.5]} 31. Nd6 {[%clk 0:03:59.3]} 31... Qg6 {[%clk
0:03:02]} 32. Nxf5 {[%clk 0:03:56.2]} 32... Qxf5 {[%clk 0:03:00.8]} 33. Qe5
{[%clk 0:03:55.7]} 33... Qxe5 {[%clk 0:02:52.6]} 34. dxe5 {[%clk 0:03:55.6]}
34... Nd7 {[%clk 0:02:46.1]} 35. Rfd1 {[%clk 0:03:53.6]} 35... Nxe5 {[%clk
0:02:43.2]} 36. Rxd5 {[%clk 0:03:52.1]} 36... Nd3 {[%clk 0:02:42.7]} 37. Rc7
{[%clk 0:03:48.6]} 37... Nxf2 {[%clk 0:02:29.9]} 38. Rdd7 {[%clk 0:03:47.4]} 1-0

[Event "Live Chess"]
[Site "Chess.com"]
[Date "2024.06.01"]
[Round "-"]
[White "Dhaydon19"]
[Black "ACM42"]
[Result "1-0"]
[WhiteElo "2693"]
[BlackElo "2214"]
[TimeControl "300"]
[EndTime "11:59:49 PDT"]
[Termination "Dhaydon19 won by resignation"]

1. c4 {[%clk 0:04:58.2]} 1... Nf6 {[%clk 0:04:58.3]} 2. Nf3 {[%clk 0:04:57.7]}
2... g6 {[%clk 0:04:57.1]} 3. g3 {[%clk 0:04:56.6]} 3... Bg7 {[%clk 0:04:55.9]}
4. Bg2 {[%clk 0:04:56.1]} 4... O-O {[%clk 0:04:54.7]} 5. O-O {[%clk 0:04:55.8]}
5... d6 {[%clk 0:04:52.4]} 6. Nc3 {[%clk 0:04:55.4]} 6... c5 {[%clk 0:04:50.9]}
7. d4 {[%clk 0:04:54.4]} 7... Nc6 {[%clk 0:04:48.7]} 8. d5 {[%clk 0:04:52]} 8...
Na5 {[%clk 0:04:45.6]} 9. Qd3 {[%clk 0:04:51.2]} 9... a6 {[%clk 0:04:43.9]} 10.
Nd2 {[%clk 0:04:48.5]} 10... b5 {[%clk 0:04:40.6]} 11. cxb5 {[%clk 0:04:46.5]}
11... axb5 {[%clk 0:04:38.7]} 12. Nxb5 {[%clk 0:04:46.2]} 12... Ba6 {[%clk
0:04:37.2]} 13. a4 {[%clk 0:04:45.3]} 13... Rb8 {[%clk 0:04:29.1]} 14. Nc4
{[%clk 0:04:41.7]} 14... Nxc4 {[%clk 0:04:21.7]} 15. Qxc4 {[%clk 0:04:38.8]}
15... Qb6 {[%clk 0:04:20.3]} 16. Bd2 {[%clk 0:04:36.8]} 16... Nd7 {[%clk
0:03:45.6]} 17. Bc3 {[%clk 0:04:31.3]} 17... Ne5 {[%clk 0:03:38.6]} 18. Qe4
{[%clk 0:04:22.4]} 18... Rfe8 {[%clk 0:03:00.7]} 19. Bh3 {[%clk 0:04:17.4]}
19... f5 {[%clk 0:02:54.6]} 20. Qe3 {[%clk 0:04:14.9]} 20... Bxb5 {[%clk
0:02:05.9]} 21. axb5 {[%clk 0:04:13]} 21... c4 {[%clk 0:01:35]} 22. Bd4 {[%clk
0:04:02.8]} 22... Qxb5 {[%clk 0:01:33.9]} 23. f4 {[%clk 0:04:01.1]} 23... Nf7
{[%clk 0:01:14.1]} 24. Bxg7 {[%clk 0:03:53]} 24... Kxg7 {[%clk 0:01:12.2]} 25.
Qd4+ {[%clk 0:03:48.9]} 25... Kg8 {[%clk 0:01:07.8]} 26. e4 {[%clk 0:03:45.1]}
26... Qxb2 {[%clk 0:00:46.7]} 27. Qxb2 {[%clk 0:03:43.1]} 27... Rxb2 {[%clk
0:00:44.4]} 28. exf5 {[%clk 0:03:42.8]} 28... Rd2 {[%clk 0:00:17.4]} 29. fxg6
{[%clk 0:03:41.2]} 29... hxg6 {[%clk 0:00:16.1]} 30. Be6 {[%clk 0:03:39.2]}
30... Kg7 {[%clk 0:00:15.7]} 31. Rf2 {[%clk 0:03:38]} 31... Rxf2 {[%clk
0:00:13.4]} 32. Kxf2 {[%clk 0:03:36.9]} 32... Nd8 {[%clk 0:00:12.5]} 33. Bd7
{[%clk 0:03:33.9]} 33... Rf8 {[%clk 0:00:10.7]} 34. Rc1 {[%clk 0:03:33.1]} 34...
Nf7 {[%clk 0:00:08.3]} 35. Rxc4 {[%clk 0:03:31.1]} 35... Nh6 {[%clk 0:00:07.2]}
36. Rc7 {[%clk 0:03:30.3]} 36... Rf7 {[%clk 0:00:05.4]} 37. Be6 {[%clk
0:03:29.5]} 1-0